Workbook

Sheet Synthèse
A1: Commission Sport - Vie Associative
A5: SYNTHÈSE SUBVENTIONS AUX ASSOCIATIONS | H5: 2017
A9: Associations locales | B9: Associations extérieures | C9: Sub 2013 | D9: Sub 2014 | E9: Sub 2015 | F9: Sub 2016 | G9: Demande 2017 | H9: Solde de banque ass. locales | I9: Solde de banque ass. extérieures1 | J9: Proposition 2017
A10: =COUNTA('Subventions 2017'!C2:C60) -> 52 | B10: =COUNTA('Subventions 2017'!D2:D60) -> 7 | C10: =SUM('Subventions 2017'!E61) -> 86362 | D10: =SUM('Subventions 2017'!F61) -> 103430 | E10: =SUM('Subventions 2017'!G61) -> 94550 | F10: =SUM('Subventions 2017'!H61) -> 105056.5 | G10: =SUM('Subventions 2017'!I61) -> 45720 | H10: =SUM('Subventions 2017'!J61) -> 195047.21 | I10: =SUM('Subventions 2017'!K61) -> 34363.81 | J10: =SUM('Subventions 2017'!L61) -> 0
C13: VARIATION PROPOSITION 2017 / SUBVENTION 2016 : | I13: =J10-F10 -> -105056.5
C14: VARIATION DEMANDE 2017 / PROPOSITION 2017 : | I14: =J10-G10 -> -45720
A16: Récapitulatif des membres des associations | D16: ="Subventions exceptionnelles "&(H5-1) -> Subventions exceptionnelles 2016 | G16: ="Subventions exceptionnelles "&(H5) -> Subventions exceptionnelles 2017
A17: Total adhérents2 | B17: =SUM('Subventions 2017'!N62) -> 1231 | D17: - | E17: Biennale | F17: 3076.5 | G17: -
D18: - | E18: Châtelaine | F18: 2000 | G18: -
A19: Total ROC3 | B19: =SUM('Subventions 2017'!O62) -> 376 | D19: - | E19: Croix Rouge | F19: 5000 | G19: -
D20: TOTAL : | F20: =SUM(F17:F19) -> 10076.5 | G20: TOTAL : | I20: =I17-I18-I19 -> 0
G21: Soit | H21: =SUM(I20-F20) -> -10076.5 | I21: ="par rapport à" &" "&(H5) -> par rapport à 2017
A24: 1 Le solde des associations extérieures ne représente pas la réalité. En effet, les fédérations ou unions présentent des soldes supérieurs de plusieurs centaines de milliers d'€.
A25: 2 Prend en compte l'ensemble des membres des associations ayant fait une demande de subvention en 2016.
A26: 3 Toutes les associations n'ayant pas nécessairement complétée la partie concernant les adhérents de la ville. il est à noter qu'il manque des rochechouartais. Aussi, les habitants étant très investis dans les associations, une personne a pu être compter plusieurs fois (dans chacune des associations pour laquelle elle adhère).

Sheet Subventions 2017
A1: Type de demande | B1: Catégorie | C1: Associations locales | D1: Associations extérieures | E1: Sub 2013 | F1: Sub 2014 | G1: Sub 2015 | H1: Sub 2016 | I1: Demande 2017 | J1: Solde de banque ass. locales | K1: Solde de banque ass. extérieures | L1: Proposition 2017 | M1: Avis de la Commision | N1: Total adhérents | O1: Adhérents ROC
A2: Associations subventionnées en 2016 avec demandes 2017 | B2: Animation | C2: Comité des fêtes | E2: 12000 | F2: 17000 | G2: 16500 | H2: 16500 | I2: 15500 | J2: 16900 | N2: 8 | O2: 5
A3: Associations subventionnées en 2016 sans demande 2017 | B3: Divers | D3: Transports Éducatifs de l'Enseignement Public (Adateep) | E3: 200 | G3: 300 | H3: 300
A4: Associations subventionnées en 2016 avec demandes 2017 | B4: Animation | C4: Association des Collectionneurs | E4: 1000 | F4: 1500 | G4: 1200 | H4: 1200 | I4: 1000 | J4: 5562.79 | N4: 23 | O4: 5
A5: Associations subventionnées en 2016 sans demande 2017 | B5: Animation | C5: Comité de Jumelage | E5: 4200 | F5: 4000 | G5: 4000 | H5: 4000
A6: Associations subventionnées en 2016 sans demande 2017 | B6: Animation | C6: La Brêche | F6: 1500 | G6: 1400 | H6: 1400
A7: Associations subventionnées en 2016 sans demande 2017 | B7: Animation | C7: La Gerbe | E7: 500 | F7: 500 | G7: 300 | H7: 800
A8: Associations subventionnées en 2016 avec demandes 2017 | B8: Animation | C8: Tout en Art | F8: 1000 | G8: 1500 | H8: 300 | I8: 400 | J8: 1401.2 | N8: 20 | O8: 2
A9: Associations subventionnées en 2016 avec demandes 2017 | B9: Culture | C9: Amis Ecole de Musique et Danse | F9: 1400 | G9: 200 | H9: 200 | I9: 200 | J9: 7556.41 | N9: 54 | O9: 40
A10: Associations subventionnées en 2016 sans demande 2017 | B10: Culture | C10: Cantique | E10: 300 | F10: 300 | G10: 200 | H10: 200
A11: Associations subventionnées en 2016 sans demande 2017 | B11: Culture | C11: Chorale Philomèle | E11: 300 | F11: 300 | G11: 200 | H11: 0
A12: Nouvelles demandes | B12: Culture | C12: Faites des Livres | I12: 1500 | J12: 31813 | N12: 30
A13: Associations subventionnées en 2016 avec demandes 2017 | B13: Culture | C13: Graine d'Art | F13: 300 | G13: 300 | H13: 200 | I13: 400 | J13: 744.29 | N13: 107 | O13: 4
A14: Associations subventionnées en 2016 avec demandes 2017 | B14: Culture | C14: Interlingua | E14: 300 | F14: 300 | G14: 200 | H14: 300 | I14: 500 | J14: 157.24 | N14: 21 | O14: 14
A15: Associations subventionnées en 2016 sans demande 2017 | B15: Culture | C15: La Châtelaine | E15: 2000 | F15: 2000 | G15: 1500 | H15: 3500
A16: Associations subventionnées en 2016 sans demande 2017 | B16: Culture | C16: Learning Together | E16: 300 | F16: 500 | G16: 300 | H16: 300
A17: Associations subventionnées en 2016 sans demande 2017 | B17: Culture | C17: Météorythmes | E17: 200 | F17: 200 | G17: 200 | H17: 200
A18: Associations subventionnées en 2016 sans demande 2017 | B18: Culture | C18: Olympes | E18: 8700 | F18: 8700 | G18: 8600 | H18: 8900
A19: Associations subventionnées en 2016 sans demande 2017 | B19: Culture | C19: OT | F19: 3820 | H19: 3076.5
A20: Associations subventionnées en 2016 sans demande 2017 | B20: Culture | C20: Pierre de Lune | H20: 250
A21: Associations subventionnées en 2016 sans demande 2017 | B21: Culture | C21: Arts Loisirs Créations | E21: 400 | F21: 400 | G21: 300 | H21: 300
A22: Associations subventionnées en 2016 avec demandes 2017 | B22: Divers | C22: ACPG (Anciens Combattants - CATM) | E22: 200 | F22: 200 | G22: 100 | H22: 100 | I22: 100 | J22: 2056 | N22: 30
A23: Associations subventionnées en 2016 sans demande 2017 | B23: Divers | C23: Amicale des Personnels | E23: 8000 | F23: 9840 | G23: 7500 | H23: 7500
A24: Associations subventionnées en 2016 avec demandes 2017 | B24: Divers | C24: Club Amitié & Loisirs | E24: 500 | F24: 500 | G24: 300 | H24: 300 | I24: 500 | J24: 5547.86 | N24: 70 | O24: 70
A25: Associations subventionnées en 2016 avec demandes 2017 | B25: Divers | C25: Coopérative Scolaire - Collège | E25: 700 | F25: 1200 | G25: 500 | H25: 500 | I25: 500 | J25: 10713.52
A26: Associations subventionnées en 2016 avec demandes 2017 | B26: Divers | C26: Coopérative Scolaire - Ecole Elémentaire | E26: 9922 | F26: 8970 | G26: 9500 | H26: 8970 | I26: 2770 | J26: 23055.34 | M26: + classe de neige
A27: Associations subventionnées en 2016 avec demandes 2017 | B27: Divers | C27: Coopérative Scolaire - Ecole Maternelle | E27: 1090 | F27: 1000 | G27: 1000 | H27: 1000 | I27: 1000 | J27: 4698.62 | N27: 96
A28: Associations subventionnées en 2016 sans demande 2017 | B28: Divers | C28: Fédération des Chasseurs (ACCA) | E28: 500 | F28: 500 | G28: 300 | H28: 300
A29: Associations subventionnées en 2016 sans demande 2017 | B29: Divers | C29: Les Amis des Fleurs | E29: 400 | F29: 400 | G29: 300 | H29: 300
A30: Associations subventionnées en 2016 sans demande 2017 | B30: Divers | C30: Moto Club Les Vasions | F30: 300 | G30: 200 | H30: 200 | I30: 250 | J30: 4828.59 | N30: 54 | O30: 6
A31: Associations subventionnées en 2016 avec demandes 2017 | B31: Divers | C31: FNATH - Personne handicapées, victimes du travail | E31: 400 | F31: 400 | G31: 300 | H31: 200 | I31: 200 | J31: 3714
A32: Nouvelles demandes | B32: Divers | C32: Rucher Municipal | I32: 2000 | O32: 14
A33: Associations subventionnées en 2016 sans demande 2017 | B33: Divers | D33: PEP 87 (Pupilles) | E33: 150 | F33: 150 | G33: 50 | H33: 50
A34: Associations subventionnées en 2016 avec demandes 2017 | B34: Santé | C34: Association des Donneurs de Sang | E34: 700 | F34: 700 | G34: 700 | H34: 700 | I34: 700 | J34: 1802.76
A35: Associations subventionnées en 2016 sans demande 2017 | B35: Santé | C35: Vie Libre | E35: 150 | F35: 150 | G35: 100 | H35: 100
A36: Associations subventionnées en 2016 sans demande 2017 | B36: Solidarité - Prévention | C36: Ligue des Droits de l'Homme | E36: 300 | F36: 300 | G36: 200 | H36: 200
A37: Associations subventionnées en 2016 sans demande 2017 | B37: Solidarité - Prévention | C37: Secours Catholique | E37: 1200 | F37: 1200 | G37: 1000 | H37: 1000
A38: Associations subventionnées en 2016 sans demande 2017 | B38: Solidarité - Prévention | C38: Secours Populaire Français | E38: 1200 | F38: 1200 | G38: 1000 | H38: 1000
A39: Associations subventionnées en 2016 avec demandes 2017 | B39: Solidarité - Prévention | D39: ASAPH (ancien ESAT Les Seilles) | E39: 1300 | F39: 1300 | G39: 1000 | H39: 1000 | I39: 1000 | K39: 21353.04 | N39: 62 | O39: 12
A40: Nouvelles demandes | B40: Solidarité - Prévention | D40: Planning Familial | H40: 0 | I40: 200 | K40: 9935.27
A41: Associations subventionnées en 2016 sans demande 2017 | B41: Solidarité - Prévention | D41: Pouce Travail | E41: 150 | F41: 150 | G41: 150 | H41: 150
A42: Associations subventionnées en 2016 avec demandes 2017 | B42: Solidarité - Prévention | D42: Prévention Routière 87 | E42: 200 | F42: 200 | G42: 100 | H42: 100 | I42: 200 | K42: 3075.5 | O42: 8
A43: Associations subventionnées en 2016 sans demande 2017 | B43: Solidarité - Prévention | D43: Service de portage de repas Croix Rouge | F43: 0 | G43: 0 | H43: 5000
A44: Associations subventionnées en 2016 avec demandes 2017 | B44: Sport | C44: Association sportive du Collège | E44: 700 | F44: 700 | G44: 500 | H44: 500 | I44: 500 | J44: 980 | N44: 74 | O44: 44
A45: Associations subventionnées en 2016 sans demande 2017 | B45: Sport | C45: Ball Trap Club | E45: 300 | F45: 400 | G45: 300 | H45: 300
A46: Associations subventionnées en 2016 sans demande 2017 | B46: Sport | C46: Gym Bien-Être | E46: 200 | F46: 200 | G46: 150 | H46: 200
A47: Associations subventionnées en 2016 sans demande 2017 | B47: Sport | C47: La Truite | E47: 0 | F47: 800 | G47: 600 | H47: 600
A48: Associations subventionnées en 2016 sans demande 2017 | B48: Sport | C48: Leg Hand | E48: 0 | F48: 0 | H48: 0
A49: Associations subventionnées en 2016 avec demandes 2017 | B49: Sport | C49: Pétanque Populaire | E49: 600 | F49: 600 | G49: 800 | H49: 800 | I49: 800 | J49: 8437.59 | N49: 71
A50: Associations subventionnées en 2016 sans demande 2017 | B50: Sport | C50: Quad ROMC | E50: 1500 | F50: 2500 | G50: 500 | H50: 2000
A51: Associations subventionnées en 2016 avec demandes 2017 | B51: Sport | C51: Handball | E51: 12000 | F51: 12000 | G51: 12000 | H51: 12000 | I51: 12000 | J51: 43839 | N51: 398 | O51: 84
A52: Associations subventionnées en 2016 sans demande 2017 | B52: Sport | C52: Athlétisme | E52: 500 | F52: 600 | G52: 900 | H52: 700
A53: Associations subventionnées en 2016 sans demande 2017 | B53: Sport | C53: Cyclo | E53: 800 | F53: 800 | G53: 5900 | H53: 5600
A54: Associations subventionnées en 2016 avec demandes 2017 | B54: Sport | C54: Danse de salon | E54: 400 | F54: 400 | G54: 300 | H54: 300 | I54: 300 | J54: 5866 | N54: 45
A55: Associations subventionnées en 2016 sans demande 2017 | B55: Sport | C55: Football | E55: 3000 | F55: 3500 | G55: 3000 | H55: 3560
A56: Associations subventionnées en 2016 sans demande 2017 | B56: Sport | C56: Gym | E56: 500 | F56: 500 | H56: 0
A57: Associations subventionnées en 2016 sans demande 2017 | B57: Sport | C57: Judo | E57: 4500 | F57: 4500 | G57: 4500 | H57: 4500
A58: Associations subventionnées en 2016 avec demandes 2017 | B58: Sport | C58: Omnisports | E58: 1000 | F58: 1000 | G58: 1200 | H58: 1200 | I58: 1200 | N58: 15 | O58: 15
A59: Associations subventionnées en 2016 avec demandes 2017 | B59: Sport | C59: Tennis | E59: 2500 | F59: 2100 | G59: 2000 | H59: 1800 | I59: 2000 | J59: 15373 | N59: 53 | O59: 53
A60: Associations subventionnées en 2016 sans demande 2017 | B60: Sport | C60: Volley Ball | E60: 400 | F60: 450 | G60: 400 | H60: 400
E61: =SUM(E2:E60) -> 86362 | F61: 103430 | G61: 94550 | H61: 105056.5 | I61: =SUM(I2:I60) -> 45720 | J61: 195047.21 | K61: 34363.81 | L61: 0
N62: =SUM(N2:N61) -> 1231 | O62: =SUM(O2:O61) -> 376
C63: Total asso. Locales | D63: Total asso. Extérieures
C64: =COUNTA(C2:C60) -> 52 | D64: =COUNTA(D2:D60) -> 7

Sheet Subs 2016 sans demande 2017
A1: =Synthèse!A1 -> Commission Sport - Vie Associative
B4: =COUNTA(B7:B200) -> 31 | C4: =COUNTA(C7:C200) -> 4 | D4: =SUM(D7:D200) -> 40850 | E4: =SUM(E7:E200) -> 50660 | F4: 44350 | G4: 56886.5 | H4: 250 | I4: 4828.59 | J4: 0 | K4: 0 | M4: =SUM(M7:M200) -> 54 | N4: =SUM(N7:N200) -> 6
A5: =Feuil2!A2 -> Associations subventionnées en 2016 sans demande 2017
A6: ='Subventions 2017'!B1 -> Catégorie | B6: ='Subventions 2017'!C1 -> Associations locales | C6: ='Subventions 2017'!D1 -> Associations extérieures | D6: ='Subventions 2017'!E1 -> Sub 2013 | E6: ='Subventions 2017'!F1 -> Sub 2014 | F6: ='Subventions 2017'!G1 -> Sub 2015 | G6: ='Subventions 2017'!H1 -> Sub 2016 | H6: ='Subventions 2017'!I1 -> Demande 2017 | I6: ='Subventions 2017'!J1 -> Solde de banque ass. locales | J6: ='Subventions 2017'!K1 -> Solde de banque ass. extérieures | K6: ='Subventions 2017'!L1 -> Proposition 2017 | L6: ='Subventions 2017'!M1 -> Avis de la Commision | M6: ='Subventions 2017'!N1 -> Total adhérents | N6: ='Subventions 2017'!O1 -> Adhérents ROC
A7: Divers | C7: Transports Éducatifs de l'Enseignement Public (Adateep) | D7: 200 | F7: 300 | G7: 300
A8: Animation | B8: Comité de Jumelage | D8: 4200 | E8: 4000 | F8: 4000 | G8: 4000
A9: Animation | B9: La Brêche | E9: 1500 | F9: 1400 | G9: 1400
A10: Animation | B10: La Gerbe | D10: 500 | E10: 500 | F10: 300 | G10: 800
A11: Culture | B11: Cantique | D11: 300 | E11: 300 | F11: 200 | G11: 200
A12: Culture | B12: Chorale Philomèle | D12: 300 | E12: 300 | F12: 200 | G12: 0
A13: Culture | B13: La Châtelaine | D13: 2000 | E13: 2000 | F13: 1500 | G13: 3500
A14: Culture | B14: Learning Together | D14: 300 | E14: 500 | F14: 300 | G14: 300
A15: Culture | B15: Météorythmes | D15: 200 | E15: 200 | F15: 200 | G15: 200
A16: Culture | B16: Olympes | D16: 8700 | E16: 8700 | F16: 8600 | G16: 8900
A17: Culture | B17: OT | E17: 3820 | G17: 3076.5
A18: Culture | B18: Pierre de Lune | G18: 250
A19: Culture | B19: Arts Loisirs Créations | D19: 400 | E19: 400 | F19: 300 | G19: 300
A20: Divers | B20: Amicale des Personnels | D20: 8000 | E20: 9840 | F20: 7500 | G20: 7500
A21: Divers | B21: Fédération des Chasseurs (ACCA) | D21: 500 | E21: 500 | F21: 300 | G21: 300
A22: Divers | B22: Les Amis des Fleurs | D22: 400 | E22: 400 | F22: 300 | G22: 300
A23: Divers | B23: Moto Club Les Vasions | E23: 300 | F23: 200 | G23: 200 | H23: 250 | I23: 4828.59 | M23: 54 | N23: 6
A24: Divers | C24: PEP 87 (Pupilles) | D24: 150 | E24: 150 | F24: 50 | G24: 50
A25: Santé | B25: Vie Libre | D25: 150 | E25: 150 | F25: 100 | G25: 100
A26: Solidarité - Prévention | B26: Ligue des Droits de l'Homme | D26: 300 | E26: 300 | F26: 200 | G26: 200
A27: Solidarité - Prévention | B27: Secours Catholique | D27: 1200 | E27: 1200 | F27: 1000 | G27: 1000
A28: Solidarité - Prévention | B28: Secours Populaire Français | D28: 1200 | E28: 1200 | F28: 1000 | G28: 1000
A29: Solidarité - Prévention | C29: Pouce Travail | D29: 150 | E29: 150 | F29: 150 | G29: 150
A30: Solidarité - Prévention | C30: Service de portage de repas Croix Rouge | E30: 0 | F30: 0 | G30: 5000
A31: Sport | B31: Ball Trap Club | D31: 300 | E31: 400 | F31: 300 | G31: 300
A32: Sport | B32: Gym Bien-Être | D32: 200 | E32: 200 | F32: 150 | G32: 200
A33: Sport | B33: La Truite | D33: 0 | E33: 800 | F33: 600 | G33: 600
A34: Sport | B34: Leg Hand | D34: 0 | E34: 0 | G34: 0
A35: Sport | B35: Quad ROMC | D35: 1500 | E35: 2500 | F35: 500 | G35: 2000
A36: Sport | B36: Athlétisme | D36: 500 | E36: 600 | F36: 900 | G36: 700
A37: Sport | B37: Cyclo | D37: 800 | E37: 800 | F37: 5900 | G37: 5600
A38: Sport | B38: Football | D38: 3000 | E38: 3500 | F38: 3000 | G38: 3560
A39: Sport | B39: Gym | D39: 500 | E39: 500 | G39: 0
A40: Sport | B40: Judo | D40: 4500 | E40: 4500 | F40: 4500 | G40: 4500
A41: Sport | B41: Volley Ball | D41: 400 | E41: 450 | F41: 400 | G41: 400

Sheet Subs 2016 avec demandes 2017
A1: =Synthèse!A1 -> Commission Sport - Vie Associative
B4: =COUNTA(B7:B200) -> 19 | C4: =COUNTA(C7:C200) -> 2 | D4: =SUM(D7:D200) -> 45512 | E4: =SUM(E7:E200) -> 52770 | F4: 50200 | G4: 48170 | H4: 41770 | I4: 158405.62 | J4: 24428.54 | K4: 0 | M4: =SUM(M7:M200) -> 1147 | N4: =SUM(N7:N200) -> 356
A5: =Feuil2!A1 -> Associations subventionnées en 2016 avec demandes 2017
A6: ='Subventions 2017'!B1 -> Catégorie | B6: ='Subventions 2017'!C1 -> Associations locales | C6: ='Subventions 2017'!D1 -> Associations extérieures | D6: ='Subventions 2017'!E1 -> Sub 2013 | E6: ='Subventions 2017'!F1 -> Sub 2014 | F6: ='Subventions 2017'!G1 -> Sub 2015 | G6: ='Subventions 2017'!H1 -> Sub 2016 | H6: ='Subventions 2017'!I1 -> Demande 2017 | I6: ='Subventions 2017'!J1 -> Solde de banque ass. locales | J6: ='Subventions 2017'!K1 -> Solde de banque ass. extérieures | K6: ='Subventions 2017'!L1 -> Proposition 2017 | L6: ='Subventions 2017'!M1 -> Avis de la Commision | M6: ='Subventions 2017'!N1 -> Total adhérents | N6: ='Subventions 2017'!O1 -> Adhérents ROC
A7: Animation | B7: Comité des fêtes | D7: 12000 | E7: 17000 | F7: 16500 | G7: 16500 | H7: 15500 | I7: 16900 | M7: 8 | N7: 5
A8: Animation | B8: Association des Collectionneurs | D8: 1000 | E8: 1500 | F8: 1200 | G8: 1200 | H8: 1000 | I8: 5562.79 | M8: 23 | N8: 5
A9: Animation | B9: Tout en Art | E9: 1000 | F9: 1500 | G9: 300 | H9: 400 | I9: 1401.2 | M9: 20 | N9: 2
A10: Culture | B10: Amis Ecole de Musique et Danse | E10: 1400 | F10: 200 | G10: 200 | H10: 200 | I10: 7556.41 | M10: 54 | N10: 40
A11: Culture | B11: Graine d'Art | E11: 300 | F11: 300 | G11: 200 | H11: 400 | I11: 744.29 | M11: 107 | N11: 4
A12: Culture | B12: Interlingua | D12: 300 | E12: 300 | F12: 200 | G12: 300 | H12: 500 | I12: 157.24 | M12: 21 | N12: 14
A13: Divers | B13: ACPG (Anciens Combattants - CATM) | D13: 200 | E13: 200 | F13: 100 | G13: 100 | H13: 100 | I13: 2056 | M13: 30
A14: Divers | B14: Club Amitié & Loisirs | D14: 500 | E14: 500 | F14: 300 | G14: 300 | H14: 500 | I14: 5547.86 | M14: 70 | N14: 70
A15: Divers | B15: Coopérative Scolaire - Collège | D15: 700 | E15: 1200 | F15: 500 | G15: 500 | H15: 500 | I15: 10713.52
A16: Divers | B16: Coopérative Scolaire - Ecole Elémentaire | D16: 9922 | E16: 8970 | F16: 9500 | G16: 8970 | H16: 2770 | I16: 23055.34 | L16: + classe de neige
A17: Divers | B17: Coopérative Scolaire - Ecole Maternelle | D17: 1090 | E17: 1000 | F17: 1000 | G17: 1000 | H17: 1000 | I17: 4698.62 | M17: 96
A18: Divers | B18: FNATH - Personne handicapées, victimes du travail | D18: 400 | E18: 400 | F18: 300 | G18: 200 | H18: 200 | I18: 3714
A19: Santé | B19: Association des Donneurs de Sang | D19: 700 | E19: 700 | F19: 700 | G19: 700 | H19: 700 | I19: 1802.76
A20: Solidarité - Prévention | C20: ASAPH (ancien ESAT Les Seilles) | D20: 1300 | E20: 1300 | F20: 1000 | G20: 1000 | H20: 1000 | J20: 21353.04 | M20: 62 | N20: 12
A21: Solidarité - Prévention | C21: Prévention Routière 87 | D21: 200 | E21: 200 | F21: 100 | G21: 100 | H21: 200 | J21: 3075.5 | N21: 8
A22: Sport | B22: Association sportive du Collège | D22: 700 | E22: 700 | F22: 500 | G22: 500 | H22: 500 | I22: 980 | M22: 74 | N22: 44
A23: Sport | B23: Pétanque Populaire | D23: 600 | E23: 600 | F23: 800 | G23: 800 | H23: 800 | I23: 8437.59 | M23: 71
A24: Sport | B24: Handball | D24: 12000 | E24: 12000 | F24: 12000 | G24: 12000 | H24: 12000 | I24: 43839 | M24: 398 | N24: 84
A25: Sport | B25: Danse de salon | D25: 400 | E25: 400 | F25: 300 | G25: 300 | H25: 300 | I25: 5866 | M25: 45
A26: Sport | B26: Omnisports | D26: 1000 | E26: 1000 | F26: 1200 | G26: 1200 | H26: 1200 | M26: 15 | N26: 15
A27: Sport | B27: Tennis | D27: 2500 | E27: 2100 | F27: 2000 | G27: 1800 | H27: 2000 | I27: 15373 | M27: 53 | N27: 53

Sheet Nouvelles demandes
B1: =Synthèse!A1 -> Commission Sport - Vie Associative
B4: =COUNTA(B7:B200) -> 0 | C4: =COUNTA(C7:C200) -> 1 | D4: =SUM(D7:D200) -> 0 | E4: =SUM(E7:E200) -> 0 | F4: 0 | G4: 0 | H4: 200 | I4: 0 | J4: 9935.27 | K4: 0 | M4: =SUM(M7:M200) -> 0 | N4: =SUM(N7:N200) -> 0
B5: =Feuil2!A3 -> Nouvelles demandes
A6: ='Subventions 2017'!B1 -> Catégorie | B6: ='Subventions 2017'!C1 -> Associations locales | C6: ='Subventions 2017'!D1 -> Associations extérieures | D6: ='Subventions 2017'!E1 -> Sub 2013 | E6: ='Subventions 2017'!F1 -> Sub 2014 | F6: ='Subventions 2017'!G1 -> Sub 2015 | G6: ='Subventions 2017'!H1 -> Sub 2016 | H6: ='Subventions 2017'!I1 -> Demande 2017 | I6: ='Subventions 2017'!J1 -> Solde de banque ass. locales | J6: ='Subventions 2017'!K1 -> Solde de banque ass. extérieures | K6: ='Subventions 2017'!L1 -> Proposition 2017 | L6: ='Subventions 2017'!M1 -> Avis de la Commision | M6: ='Subventions 2017'!N1 -> Total adhérents | N6: ='Subventions 2017'!O1 -> Adhérents ROC
A7: Solidarité - Prévention | C7: Planning Familial | G7: 0 | H7: 200 | J7: 9935.27

Sheet Feuil2
A1: Associations subventionnées en 2016 avec demandes 2017
A2: Associations subventionnées en 2016 sans demande 2017
A3: Nouvelles demandes
